[Event "Late-Titled-Tuesday-Blitz-April-02-2024"]
[Site "Chess.com"]
[Date "2024.04.02"]
[Round "8"]
[White "KuzubovYuriy"]
[Black "LiemLe"]
[Result "0-1"]
[WhiteElo "2924"]
[BlackElo "3043"]
[TimeControl "180+1"]
[EndTime "15:27:11 PDT"]
[Termination "LiemLe won on time"]

1. Nf3 {[%clk 0:03:00.9]} 1... d5 {[%clk 0:02:59.6]} 2. d4 {[%clk 0:02:58.4]}
2... Nf6 {[%clk 0:02:59.9]} 3. c4 {[%clk 0:02:58.9]} 3... e6 {[%clk 0:03:00.6]}
4. Nc3 {[%clk 0:02:58.7]} 4... Nbd7 {[%clk 0:03:00.8]} 5. Qc2 {[%clk 0:02:52.4]}
5... c6 {[%clk 0:02:56.4]} 6. cxd5 {[%clk 0:02:52.4]} 6... exd5 {[%clk
0:02:56.2]} 7. Bf4 {[%clk 0:02:50.2]} 7... Nh5 {[%clk 0:02:52]} 8. e3 {[%clk
0:02:47.8]} 8... Nxf4 {[%clk 0:02:45.7]} 9. exf4 {[%clk 0:02:48.3]} 9... Bd6
{[%clk 0:02:46.4]} 10. g3 {[%clk 0:02:46.9]} 10... O-O {[%clk 0:02:43.3]} 11.
Bd3 {[%clk 0:02:45.9]} 11... Re8+ {[%clk 0:02:43.4]} 12. Kf1 {[%clk 0:02:46.3]}
12... Nf8 {[%clk 0:02:31.5]} 13. Kg2 {[%clk 0:02:45]} 13... f6 {[%clk
0:02:23.9]} 14. h3 {[%clk 0:02:37.6]} 14... Be6 {[%clk 0:02:20.4]} 15. Rad1
{[%clk 0:02:31]} 15... Rc8 {[%clk 0:02:15.4]} 16. a3 {[%clk 0:02:29.1]} 16...
Rc7 {[%clk 0:02:06.4]} 17. Rd2 {[%clk 0:02:18.8]} 17... Qc8 {[%clk 0:01:55.8]}
18. Qb1 {[%clk 0:02:11.2]} 18... a5 {[%clk 0:01:46.7]} 19. Nd1 {[%clk
0:02:04.7]} 19... c5 {[%clk 0:01:38.8]} 20. Bb5 {[%clk 0:02:02]} 20... Rd8
{[%clk 0:01:37.1]} 21. Ne3 {[%clk 0:01:59.5]} 21... c4 {[%clk 0:01:34.6]} 22.
Re2 {[%clk 0:01:49.7]} 22... Re7 {[%clk 0:01:26.7]} 23. a4 {[%clk 0:01:41.4]}
23... Bb4 {[%clk 0:01:24.5]} 24. Qd1 {[%clk 0:01:33.3]} 24... Nd7 {[%clk
0:01:16.1]} 25. Nc2 {[%clk 0:01:14.5]} 25... Bf5 {[%clk 0:00:57]} 26. Nxb4
{[%clk 0:00:45.5]} 26... Rxe2 {[%clk 0:00:55.9]} 27. Qxe2 {[%clk 0:00:32]} 27...
axb4 {[%clk 0:00:55.5]} 28. Re1 {[%clk 0:00:32.6]} 28... Nf8 {[%clk 0:00:48.6]}
29. Nh4 {[%clk 0:00:29.9]} 29... Bd7 {[%clk 0:00:34.4]} 30. Bxd7 {[%clk
0:00:20.4]} 30... Qxd7 {[%clk 0:00:35.3]} 31. a5 {[%clk 0:00:19.3]} 31... Rc8
{[%clk 0:00:33.7]} 32. Nf3 {[%clk 0:00:16]} 32... c3 {[%clk 0:00:32.1]} 33. bxc3
{[%clk 0:00:16.2]} 33... bxc3 {[%clk 0:00:33]} 34. Qd3 {[%clk 0:00:16]} 34...
Qa4 {[%clk 0:00:29.2]} 35. Rc1 {[%clk 0:00:14.7]} 35... Qxa5 {[%clk 0:00:29.3]}
36. f5 {[%clk 0:00:13.4]} 36... b5 {[%clk 0:00:28.9]} 37. g4 {[%clk 0:00:10.5]}
37... b4 {[%clk 0:00:28.7]} 38. Qc2 {[%clk 0:00:09.2]} 38... Qa3 {[%clk
0:00:24.1]} 39. Rb1 {[%clk 0:00:09.1]} 39... b3 {[%clk 0:00:21.3]} 40. Rxb3
{[%clk 0:00:08.6]} 40... Qxb3 {[%clk 0:00:21.9]} 41. Qxb3 {[%clk 0:00:09.2]}
41... c2 {[%clk 0:00:22.8]} 42. Qxd5+ {[%clk 0:00:08.9]} 42... Kh8 {[%clk
0:00:23.3]} 43. g5 {[%clk 0:00:07.6]} 43... c1=Q {[%clk 0:00:23.7]} 44. gxf6
{[%clk 0:00:08]} 44... gxf6 {[%clk 0:00:24.4]} 45. Qf7 {[%clk 0:00:08.3]} 45...
Qh6 {[%clk 0:00:22.5]} 46. Kh2 {[%clk 0:00:06.3]} 46... Qg7 {[%clk 0:00:17.8]}
47. Qd5 {[%clk 0:00:05.5]} 47... Qd7 {[%clk 0:00:16.1]} 48. Qe4 {[%clk
0:00:04.6]} 48... Qd6+ {[%clk 0:00:15.8]} 49. Kg2 {[%clk 0:00:04.6]} 49... Nd7
{[%clk 0:00:16.5]} 50. Nh4 {[%clk 0:00:04.5]} 50... Rg8+ {[%clk 0:00:17.4]} 51.
Kf3 {[%clk 0:00:03.7]} 51... Qa3+ {[%clk 0:00:17.1]} 52. Ke2 {[%clk 0:00:03.5]}
52... Qxh3 {[%clk 0:00:17.1]} 53. f3 {[%clk 0:00:02.4]} 53... Qh2+ {[%clk
0:00:16.2]} 54. Kd3 {[%clk 0:00:02.6]} 54... Rb8 {[%clk 0:00:15.9]} 55. Qe7
{[%clk 0:00:01.7]} 55... Qxh4 {[%clk 0:00:15.9]} 56. Qxd7 {[%clk 0:00:01.3]}
56... Qf4 {[%clk 0:00:15.2]} 57. Qc6 {[%clk 0:00:01.3]} 57... Qxf5+ {[%clk
0:00:15.3]} 58. Kc4 {[%clk 0:00:01.3]} 58... Rc8 {[%clk 0:00:15.5]} 0-1

[Event "Late-Titled-Tuesday-Blitz-April-02-2024"]
[Site "Chess.com"]
[Date "2024.04.02"]
[Round "8"]
[White "maurovargas01"]
[Black "Kostukov_Alex"]
[Result "0-1"]
[WhiteElo "1887"]
[BlackElo "2286"]
[TimeControl "180+1"]
[EndTime "15:27:11 PDT"]
[Termination "Kostukov_Alex won by checkmate"]

1. e4 {[%clk 0:03:00.9]} 1... c5 {[%clk 0:02:45.1]} 2. Nc3 {[%clk 0:03:00.7]}
2... g6 {[%clk 0:02:44.9]} 3. f4 {[%clk 0:03:01.6]} 3... Bg7 {[%clk 0:02:40.4]}
4. Nf3 {[%clk 0:03:02.5]} 4... Nc6 {[%clk 0:02:40.2]} 5. Bb5 {[%clk 0:03:00.2]}
5... Nd4 {[%clk 0:02:39.1]} 6. Bf1 {[%clk 0:03:00]} 6... e6 {[%clk 0:02:37.7]}
7. d3 {[%clk 0:03:00.3]} 7... Ne7 {[%clk 0:02:26.3]} 8. g3 {[%clk 0:02:58.5]}
8... O-O {[%clk 0:02:26]} 9. Bg2 {[%clk 0:02:58.4]} 9... Nec6 {[%clk 0:02:25.9]}
10. O-O {[%clk 0:02:58.1]} 10... Nxf3+ {[%clk 0:02:14.2]} 11. Bxf3 {[%clk
0:02:57.5]} 11... Nd4 {[%clk 0:02:15.1]} 12. Bg2 {[%clk 0:02:57.2]} 12... Rb8
{[%clk 0:02:15.6]} 13. Ne2 {[%clk 0:02:54.5]} 13... b5 {[%clk 0:02:11.2]} 14. c3
{[%clk 0:02:54.5]} 14... Nxe2+ {[%clk 0:02:06.2]} 15. Qxe2 {[%clk 0:02:54.6]}
15... Bb7 {[%clk 0:02:05.8]} 16. f5 {[%clk 0:02:49]} 16... exf5 {[%clk
0:02:03.9]} 17. exf5 {[%clk 0:02:48.9]} 17... Bxg2 {[%clk 0:01:59.5]} 18. Qxg2
{[%clk 0:02:47.9]} 18... b4 {[%clk 0:01:59.3]} 19. fxg6 {[%clk 0:02:47.1]} 19...
hxg6 {[%clk 0:01:56.1]} 20. Bd2 {[%clk 0:02:34.6]} 20... a5 {[%clk 0:01:35.1]}
21. Qd5 {[%clk 0:02:33.9]} 21... d6 {[%clk 0:01:29.8]} 22. Bg5 {[%clk
0:02:28.8]} 22... Qb6 {[%clk 0:01:27]} 23. Rac1 {[%clk 0:02:16.2]} 23... Rbe8
{[%clk 0:01:17.2]} 24. Bf4 {[%clk 0:02:07]} 24... Be5 {[%clk 0:01:07.2]} 25.
Bxe5 {[%clk 0:02:04]} 25... Rxe5 {[%clk 0:01:08.1]} 26. Qg2 {[%clk 0:01:48.7]}
26... Rfe8 {[%clk 0:01:02.7]} 27. Qf3 {[%clk 0:01:48.2]} 27... R8e7 {[%clk
0:00:59.2]} 28. Qa8+ {[%clk 0:01:47.8]} 28... Kg7 {[%clk 0:00:59]} 29. Qf3
{[%clk 0:01:47.5]} 29... d5 {[%clk 0:00:56.4]} 30. Rcd1 {[%clk 0:01:44.6]} 30...
Qe6 {[%clk 0:00:50]} 31. d4 {[%clk 0:01:43]} 31... Re3 {[%clk 0:00:48.9]} 32.
Qg2 {[%clk 0:01:37.3]} 32... c4 {[%clk 0:00:43.2]} 33. cxb4 {[%clk 0:01:24.8]}
33... axb4 {[%clk 0:00:44.1]} 34. Rf2 {[%clk 0:01:24.3]} 34... c3 {[%clk
0:00:37.2]} 35. bxc3 {[%clk 0:01:23.1]} 35... bxc3 {[%clk 0:00:38.1]} 36. Rdf1
{[%clk 0:01:17]} 36... f5 {[%clk 0:00:29.8]} 37. g4 {[%clk 0:01:14.2]} 37...
fxg4 {[%clk 0:00:14.9]} 38. Rf4 {[%clk 0:00:43.8]} 38... Re2 {[%clk 0:00:12.8]}
39. Qg3 {[%clk 0:00:40.5]} 39... Qe3+ {[%clk 0:00:09.4]} 40. Kh1 {[%clk
0:00:28.1]} 40... Qxg3 {[%clk 0:00:08.8]} 41. hxg3 {[%clk 0:00:27.2]} 41... c2
{[%clk 0:00:09.2]} 42. Rc1 {[%clk 0:00:25.8]} 42... Re1+ {[%clk 0:00:08.2]} 43.
Rf1 {[%clk 0:00:25.5]} 43... Rxf1+ {[%clk 0:00:08.1]} 44. Rxf1 {[%clk 0:00:25]}
44... Re2 {[%clk 0:00:09]} 45. Rc1 {[%clk 0:00:20.8]} 45... Rd2 {[%clk
0:00:08.2]} 46. Kg1 {[%clk 0:00:15.7]} 46... Rd1+ {[%clk 0:00:02.4]} 47. Rxd1
{[%clk 0:00:15.3]} 47... cxd1=Q+ {[%clk 0:00:03.3]} 48. Kf2 {[%clk 0:00:15.7]}
48... Qxd4+ {[%clk 0:00:03.9]} 49. Kf1 {[%clk 0:00:11.4]} 49... Qb2 {[%clk
0:00:03.7]} 50. a4 {[%clk 0:00:10.8]} 50... d4 {[%clk 0:00:04.3]} 51. a5 {[%clk
0:00:10.8]} 51... d3 {[%clk 0:00:05]} 52. a6 {[%clk 0:00:11.5]} 52... Qe2+
{[%clk 0:00:05.5]} 53. Kg1 {[%clk 0:00:11]} 53... d2 {[%clk 0:00:06.4]} 54. a7
{[%clk 0:00:11.1]} 54... d1=Q# {[%clk 0:00:07.3]} 0-1

[Event "Late-Titled-Tuesday-Blitz-April-02-2024"]
[Site "Chess.com"]
[Date "2024.04.02"]
[Round "8"]
[White "AsaHoffmann"]
[Black "ZachHKL"]
[Result "0-1"]
[WhiteElo "2403"]
[BlackElo "2287"]
[TimeControl "180+1"]
[EndTime "15:27:14 PDT"]
[Termination "ZachHKL won by resignation"]

1. d4 {[%clk 0:02:52.9]} 1... Nf6 {[%clk 0:02:59.7]} 2. Bg5 {[%clk 0:02:47.7]}
2... e6 {[%clk 0:02:57.2]} 3. Nd2 {[%clk 0:02:44.2]} 3... h6 {[%clk 0:02:52.3]}
4. Bh4 {[%clk 0:02:44.1]} 4... Be7 {[%clk 0:02:51.9]} 5. e3 {[%clk 0:02:44]}
5... d5 {[%clk 0:02:51.5]} 6. Bd3 {[%clk 0:02:43.8]} 6... c5 {[%clk 0:02:51.2]}
7. c3 {[%clk 0:02:43.8]} 7... Qb6 {[%clk 0:02:50.1]} 8. Rb1 {[%clk 0:02:43.4]}
8... Nc6 {[%clk 0:02:49.1]} 9. f4 {[%clk 0:02:43.3]} 9... Bd7 {[%clk 0:02:44.5]}
10. Ngf3 {[%clk 0:02:43.1]} 10... O-O-O {[%clk 0:02:44]} 11. Ne5 {[%clk
0:02:41.4]} 11... Rdf8 {[%clk 0:02:33.7]} 12. O-O {[%clk 0:02:40.2]} 12... Rhg8
{[%clk 0:02:23.5]} 13. Bf2 {[%clk 0:02:30.4]} 13... g5 {[%clk 0:02:17.5]} 14.
fxg5 {[%clk 0:02:26.2]} 14... hxg5 {[%clk 0:02:10]} 15. Bg3 {[%clk 0:02:25.9]}
15... Rh8 {[%clk 0:02:06.7]} 16. a3 {[%clk 0:02:16.9]} 16... Be8 {[%clk
0:02:02]} 17. b4 {[%clk 0:02:14.7]} 17... c4 {[%clk 0:02:02]} 18. Bc2 {[%clk
0:02:11.6]} 18... Nh5 {[%clk 0:02:01.5]} 19. Bf2 {[%clk 0:02:08.4]} 19... Nxe5
{[%clk 0:01:55.5]} 20. dxe5 {[%clk 0:02:07.8]} 20... f6 {[%clk 0:01:52.5]} 21.
e4 {[%clk 0:02:07.2]} 21... Qc7 {[%clk 0:01:48.2]} 22. Nf3 {[%clk 0:02:01.1]}
22... Bc6 {[%clk 0:01:45.3]} 23. Nd4 {[%clk 0:02:00.2]} 23... Qxe5 {[%clk
0:01:42]} 24. Nxc6 {[%clk 0:01:51.9]} 24... bxc6 {[%clk 0:01:40.4]} 25. Bd4
{[%clk 0:01:51.7]} 25... Qc7 {[%clk 0:01:37.7]} 26. Qe2 {[%clk 0:01:40.5]} 26...
Bd6 {[%clk 0:01:36.8]} 27. h3 {[%clk 0:01:29.7]} 27... Bh2+ {[%clk 0:01:34.9]}
28. Kf2 {[%clk 0:01:29]} 28... Ng3 {[%clk 0:01:33]} 29. Qf3 {[%clk 0:01:27.6]}
29... Nxf1 {[%clk 0:01:27.3]} 30. Rxf1 {[%clk 0:01:26.7]} 30... g4 {[%clk
0:01:22.1]} 31. hxg4 {[%clk 0:01:23.7]} 31... Be5 {[%clk 0:01:18.3]} 32. Bc5
{[%clk 0:01:23.4]} 32... Rfg8 {[%clk 0:01:16.5]} 33. exd5 {[%clk 0:01:16.9]}
33... cxd5 {[%clk 0:01:16]} 34. a4 {[%clk 0:01:10.2]} 34... Qg7 {[%clk
0:01:14.5]} 35. Bd1 {[%clk 0:01:08.6]} 35... Qh6 {[%clk 0:01:11.2]} 36. Bxa7
{[%clk 0:01:04]} 36... Qd2+ {[%clk 0:01:10.1]} 37. Be2 {[%clk 0:00:59.6]} 37...
Qxc3 {[%clk 0:01:08.2]} 38. Qxc3 {[%clk 0:00:58]} 38... Bxc3 {[%clk 0:01:09.1]}
39. b5 {[%clk 0:00:57.2]} 39... e5 {[%clk 0:01:06.2]} 40. Rc1 {[%clk 0:00:54]}
40... Bd4+ {[%clk 0:01:06]} 41. Bxd4 {[%clk 0:00:53]} 41... exd4 {[%clk
0:01:06.9]} 42. Bf3 {[%clk 0:00:53.2]} 42... Rd8 {[%clk 0:01:05.8]} 43. a5
{[%clk 0:00:52.1]} 43... Kb7 {[%clk 0:01:05.5]} 44. b6 {[%clk 0:00:51.2]} 44...
Ka6 {[%clk 0:00:57.8]} 45. Rb1 {[%clk 0:00:50.3]} 45... Kxa5 {[%clk 0:00:46.2]}
46. Ke2 {[%clk 0:00:48.2]} 46... Ka6 {[%clk 0:00:30.5]} 47. b7 {[%clk
0:00:46.1]} 47... Ka7 {[%clk 0:00:28.5]} 48. Rb5 {[%clk 0:00:44.3]} 48... Rhe8+
{[%clk 0:00:20.8]} 49. Kd2 {[%clk 0:00:43.9]} 49... d3 {[%clk 0:00:19.7]} 50.
Bxd5 {[%clk 0:00:35]} 50... Re2+ {[%clk 0:00:19.2]} 51. Kc3 {[%clk 0:00:33.2]}
51... Rc2+ {[%clk 0:00:17.8]} 52. Kd4 {[%clk 0:00:32.1]} 52... Kb8 {[%clk
0:00:18.2]} 53. Rb1 {[%clk 0:00:29]} 53... d2 {[%clk 0:00:18.1]} 54. Rd1 {[%clk
0:00:29]} 54... c3 {[%clk 0:00:18.5]} 55. Kd3 {[%clk 0:00:25.6]} 55... Rc1
{[%clk 0:00:18.9]} 56. Rxd2 {[%clk 0:00:25.1]} 56... cxd2 {[%clk 0:00:18.9]} 57.
Kxd2 {[%clk 0:00:25.3]} 57... Rc7 {[%clk 0:00:18.7]} 58. Ke3 {[%clk 0:00:24.9]}
58... Rxd5 {[%clk 0:00:19.3]} 59. Kf4 {[%clk 0:00:25]} 59... Rg5 {[%clk
0:00:20]} 60. g3 {[%clk 0:00:24.9]} 60... Rcg7 {[%clk 0:00:20.9]} 61. Ke4 {[%clk
0:00:21.6]} 61... Kxb7 {[%clk 0:00:21.8]} 62. Kf4 {[%clk 0:00:21.4]} 62... Rxg4+
{[%clk 0:00:20.8]} 63. Kf5 {[%clk 0:00:21.4]} 63... R7g6 {[%clk 0:00:21.7]} 64.
Ke6 {[%clk 0:00:17.6]} 64... Rxg3 {[%clk 0:00:22.6]} 65. Kf7 {[%clk 0:00:17.2]}
65... f5 {[%clk 0:00:22.8]} 66. Kf8 {[%clk 0:00:16]} 66... f4 {[%clk 0:00:23.7]}
67. Kf7 {[%clk 0:00:15.8]} 67... f3 {[%clk 0:00:24.6]} 68. Kf8 {[%clk
0:00:15.9]} 68... f2 {[%clk 0:00:25.5]} 0-1

[Event "Late-Titled-Tuesday-Blitz-April-02-2024"]
[Site "Chess.com"]
[Date "2024.04.02"]
[Round "8"]
[White "SpeedofLight0"]
[Black "Oleksandr_Bortnyk"]
[Result "1-0"]
[WhiteElo "3090"]
[BlackElo "3058"]
[TimeControl "180+1"]
[EndTime "15:27:15 PDT"]
[Termination "SpeedofLight0 won by resignation"]

1. d4 {[%clk 0:03:00.9]} 1... Nf6 {[%clk 0:02:57]} 2. Nc3 {[%clk 0:03:01]} 2...
d6 {[%clk 0:02:50]} 3. e4 {[%clk 0:03:00.4]} 3... Nbd7 {[%clk 0:02:49.8]} 4. Nf3
{[%clk 0:03:00.5]} 4... e5 {[%clk 0:02:50.2]} 5. Bc4 {[%clk 0:03:01.3]} 5... Be7
{[%clk 0:02:50.6]} 6. O-O {[%clk 0:03:02]} 6... O-O {[%clk 0:02:50.7]} 7. Re1
{[%clk 0:03:02.7]} 7... a6 {[%clk 0:02:51.2]} 8. a4 {[%clk 0:03:01.9]} 8... b6
{[%clk 0:02:51.9]} 9. h3 {[%clk 0:03:01.2]} 9... Bb7 {[%clk 0:02:50.8]} 10. b3
{[%clk 0:03:01.3]} 10... c6 {[%clk 0:02:49.8]} 11. Bd3 {[%clk 0:03:00.9]} 11...
b5 {[%clk 0:02:47.7]} 12. Bb2 {[%clk 0:03:00.3]} 12... Qb6 {[%clk 0:02:42.1]}
13. Ne2 {[%clk 0:02:56.6]} 13... Rfe8 {[%clk 0:02:31]} 14. dxe5 {[%clk
0:02:34.1]} 14... dxe5 {[%clk 0:02:31.9]} 15. Nxe5 {[%clk 0:02:34.7]} 15... Bc5
{[%clk 0:02:14.4]} 16. Nxd7 {[%clk 0:02:20.8]} 16... Bxf2+ {[%clk 0:02:14.1]}
17. Kh1 {[%clk 0:02:20.4]} 17... Nxd7 {[%clk 0:02:15]} 18. Rf1 {[%clk
0:02:19.3]} 18... Ne5 {[%clk 0:02:12.2]} 19. a5 {[%clk 0:02:08.5]} 19... Qa7
{[%clk 0:01:46.1]} 20. Nf4 {[%clk 0:02:08.4]} 20... Rad8 {[%clk 0:01:39]} 21.
Bxe5 {[%clk 0:01:48]} 21... Rxe5 {[%clk 0:01:37.7]} 22. Qf3 {[%clk 0:01:48.7]}
22... Bc5 {[%clk 0:01:23.3]} 23. Nh5 {[%clk 0:01:27]} 23... Bc8 {[%clk 0:00:24]}
24. Nxg7 {[%clk 0:01:27]} 24... Bd4 {[%clk 0:00:23.4]} 25. Rad1 {[%clk
0:00:43.6]} 25... Qe7 {[%clk 0:00:23.7]} 26. Nh5 {[%clk 0:00:34.1]} 26... Rg5
{[%clk 0:00:23.4]} 27. e5 {[%clk 0:00:32.4]} 27... Bxe5 {[%clk 0:00:20.7]} 28.
Rde1 {[%clk 0:00:16.9]} 28... Be6 {[%clk 0:00:14.8]} 29. Rxe5 {[%clk 0:00:13.9]}
29... Rxe5 {[%clk 0:00:12.7]} 30. Nf6+ {[%clk 0:00:14.3]} 30... Kh8 {[%clk
0:00:10]} 31. Bxh7 {[%clk 0:00:07]} 31... Rg5 {[%clk 0:00:04.3]} 32. Qf4 {[%clk
0:00:05.1]} 32... Rf5 {[%clk 0:00:01.4]} 33. Bxf5 {[%clk 0:00:03.5]} 33... Qxf6
{[%clk 0:00:02.2]} 34. Bxe6 {[%clk 0:00:03.2]} 34... Qxf4 {[%clk 0:00:03.1]} 35.
Rxf4 {[%clk 0:00:03.5]} 35... fxe6 {[%clk 0:00:04]} 36. Rf6 {[%clk 0:00:02.9]}
36... Rd6 {[%clk 0:00:03.7]} 37. Rf8+ {[%clk 0:00:03.1]} 37... Kg7 {[%clk
0:00:04.6]} 38. Ra8 {[%clk 0:00:03.4]} 38... Rd2 {[%clk 0:00:04.6]} 39. Rxa6
{[%clk 0:00:03.4]} 39... Rxc2 {[%clk 0:00:05.2]} 40. Rb6 {[%clk 0:00:03.7]}
40... Kf6 {[%clk 0:00:04.6]} 41. a6 {[%clk 0:00:04.1]} 41... Ke7 {[%clk
0:00:02]} 42. Kg1 {[%clk 0:00:03.2]} 42... Kd6 {[%clk 0:00:01.9]} 43. h4 {[%clk
0:00:03.6]} 43... Ra2 {[%clk 0:00:01.6]} 44. h5 {[%clk 0:00:03.5]} 44... Kc5
{[%clk 0:00:02.3]} 45. Rb8 {[%clk 0:00:02.8]} 45... Rxa6 {[%clk 0:00:02.3]} 46.
h6 {[%clk 0:00:03.5]} 46... Ra7 {[%clk 0:00:02.9]} 47. g4 {[%clk 0:00:04]} 47...
Rf7 {[%clk 0:00:01.4]} 48. g5 {[%clk 0:00:03.9]} 48... Rf5 {[%clk 0:00:02]} 49.
h7 {[%clk 0:00:04.2]} 49... Rxg5+ {[%clk 0:00:02.5]} 50. Kf2 {[%clk 0:00:04.8]}
50... Rh5 {[%clk 0:00:02.7]} 51. h8=Q {[%clk 0:00:05.5]} 51... Rxh8 {[%clk
0:00:03.6]} 52. Rxh8 {[%clk 0:00:05.6]} 52... Kb4 {[%clk 0:00:04.5]} 53. Rh3
{[%clk 0:00:05.9]} 53... c5 {[%clk 0:00:05]} 54. Ke2 {[%clk 0:00:06.5]} 54...
Ka3 {[%clk 0:00:03.8]} 55. Kd2 {[%clk 0:00:07.1]} 55... Kb2 {[%clk 0:00:04.6]}
56. Rc3 {[%clk 0:00:06.6]} 56... c4 {[%clk 0:00:04.3]} 57. bxc4 {[%clk
0:00:06.7]} 57... b4 {[%clk 0:00:05.2]} 58. Re3 {[%clk 0:00:07]} 58... b3 {[%clk
0:00:05.5]} 59. c5 {[%clk 0:00:07.2]} 59... Kb1 {[%clk 0:00:05.4]} 60. Rxb3+
{[%clk 0:00:07.2]} 1-0

[Event "Late-Titled-Tuesday-Blitz-April-02-2024"]
[Site "Chess.com"]
[Date "2024.04.02"]
[Round "8"]
[White "KaydenTroffChess"]
[Black "sergiochess83"]
[Result "1/2-1/2"]
[WhiteElo "2861"]
[BlackElo "2965"]
[TimeControl "180+1"]
[EndTime "15:27:21 PDT"]
[Termination "Game drawn - insufficient material"]

1. d4 {[%clk 0:03:00.9]} 1... d5 {[%clk 0:02:52.6]} 2. Nf3 {[%clk 0:02:59.3]}
2... Nf6 {[%clk 0:02:50.8]} 3. Bf4 {[%clk 0:02:59.4]} 3... c5 {[%clk 0:02:45.8]}
4. e3 {[%clk 0:02:59.6]} 4... Nc6 {[%clk 0:02:43.6]} 5. Nc3 {[%clk 0:02:59.9]}
5... Nh5 {[%clk 0:01:46]} 6. Bg5 {[%clk 0:02:53]} 6... h6 {[%clk 0:01:15.6]} 7.
Bh4 {[%clk 0:02:52.8]} 7... g5 {[%clk 0:01:15.6]} 8. Bg3 {[%clk 0:02:53.4]} 8...
Nxg3 {[%clk 0:01:11.9]} 9. hxg3 {[%clk 0:02:53.1]} 9... Bg7 {[%clk 0:01:12.1]}
10. dxc5 {[%clk 0:02:40.1]} 10... Qa5 {[%clk 0:01:10.3]} 11. Be2 {[%clk
0:02:33.4]} 11... e6 {[%clk 0:00:48.4]} 12. Kf1 {[%clk 0:02:31.4]} 12... Qxc5
{[%clk 0:00:46.6]} 13. Nb5 {[%clk 0:02:27.3]} 13... O-O {[%clk 0:00:46.7]} 14.
c3 {[%clk 0:02:07.6]} 14... Bd7 {[%clk 0:00:42.6]} 15. Qd3 {[%clk 0:01:44.8]}
15... Rfd8 {[%clk 0:00:40.7]} 16. Rd1 {[%clk 0:01:34]} 16... a6 {[%clk
0:00:35.7]} 17. Nbd4 {[%clk 0:01:33.5]} 17... Rac8 {[%clk 0:00:23.3]} 18. Nb3
{[%clk 0:01:27.3]} 18... Qe7 {[%clk 0:00:22.3]} 19. Kg1 {[%clk 0:01:23.5]} 19...
Be8 {[%clk 0:00:20.3]} 20. Nh2 {[%clk 0:01:16.8]} 20... Ne5 {[%clk 0:00:19.4]}
21. Qd2 {[%clk 0:01:15.7]} 21... Nc4 {[%clk 0:00:18.9]} 22. Qc1 {[%clk
0:01:14.8]} 22... f5 {[%clk 0:00:17.5]} 23. Nd4 {[%clk 0:01:10.8]} 23... b5
{[%clk 0:00:16.3]} 24. Nhf3 {[%clk 0:01:09.2]} 24... Nd6 {[%clk 0:00:14.8]} 25.
Qb1 {[%clk 0:01:06.1]} 25... Ne4 {[%clk 0:00:14.9]} 26. Nd2 {[%clk 0:01:03.3]}
26... Bg6 {[%clk 0:00:09.9]} 27. Nxe4 {[%clk 0:01:01.9]} 27... dxe4 {[%clk
0:00:09.5]} 28. Kh2 {[%clk 0:01:01]} 28... e5 {[%clk 0:00:08.5]} 29. Nb3 {[%clk
0:01:00.2]} 29... g4 {[%clk 0:00:07.5]} 30. Rxd8+ {[%clk 0:00:59.7]} 30... Rxd8
{[%clk 0:00:07.8]} 31. Rd1 {[%clk 0:01:00.5]} 31... h5 {[%clk 0:00:07.8]} 32.
Rxd8+ {[%clk 0:00:59.5]} 32... Qxd8 {[%clk 0:00:08.7]} 33. Qd1 {[%clk 0:01:00]}
33... Qxd1 {[%clk 0:00:08.8]} 34. Bxd1 {[%clk 0:01:00.9]} 34... Bf7 {[%clk
0:00:09.2]} 35. Nc5 {[%clk 0:00:57.7]} 35... a5 {[%clk 0:00:08.7]} 36. b3 {[%clk
0:00:55.3]} 36... Bf8 {[%clk 0:00:09]} 37. Nb7 {[%clk 0:00:55.7]} 37... a4
{[%clk 0:00:09.2]} 38. bxa4 {[%clk 0:00:55.7]} 38... bxa4 {[%clk 0:00:09.7]} 39.
Bxa4 {[%clk 0:00:56.1]} 39... Bxa2 {[%clk 0:00:09.8]} 40. Bd7 {[%clk 0:00:54.9]}
40... f4 {[%clk 0:00:08.4]} 41. Bc6 {[%clk 0:00:54.2]} 41... fxe3 {[%clk
0:00:08.1]} 42. fxe3 {[%clk 0:00:53.5]} 42... Bh6 {[%clk 0:00:09]} 43. Bxe4
{[%clk 0:00:50.8]} 43... Bxe3 {[%clk 0:00:09.1]} 44. Bg6 {[%clk 0:00:47]} 44...
Bf7 {[%clk 0:00:06]} 45. Bxf7+ {[%clk 0:00:46.2]} 45... Kxf7 {[%clk 0:00:06.9]}
46. Nd6+ {[%clk 0:00:44.3]} 46... Ke6 {[%clk 0:00:07.2]} 47. Ne4 {[%clk
0:00:44.9]} 47... Kd5 {[%clk 0:00:05.3]} 48. Nf6+ {[%clk 0:00:44.9]} 48... Kc4
{[%clk 0:00:05.7]} 49. Nxh5 {[%clk 0:00:44.8]} 49... Kxc3 {[%clk 0:00:03.9]} 50.
Nf6 {[%clk 0:00:44.5]} 50... Kd4 {[%clk 0:00:04]} 51. Nxg4 {[%clk 0:00:44.3]}
51... Bg5 {[%clk 0:00:04.7]} 52. Kg1 {[%clk 0:00:43.1]} 52... e4 {[%clk
0:00:05.2]} 53. Kf1 {[%clk 0:00:42.9]} 53... Kd3 {[%clk 0:00:05.3]} 54. Nf2+
{[%clk 0:00:42.4]} 54... Ke3 {[%clk 0:00:04.7]} 55. Ke1 {[%clk 0:00:40.8]} 55...
Bd8 {[%clk 0:00:04.7]} 56. Nd1+ {[%clk 0:00:40.4]} 56... Kd3 {[%clk 0:00:05.2]}
57. Nf2+ {[%clk 0:00:40.9]} 57... Ke3 {[%clk 0:00:05.6]} 58. Kf1 {[%clk
0:00:38.4]} 58... Bc7 {[%clk 0:00:05.5]} 59. g4 {[%clk 0:00:23.7]} 59... Kf4
{[%clk 0:00:05.8]} 60. Ke2 {[%clk 0:00:22.5]} 60... Bb6 {[%clk 0:00:05.4]} 61.
g5 {[%clk 0:00:16.6]} 61... Bxf2 {[%clk 0:00:02.3]} 62. Kxf2 {[%clk 0:00:16.8]}
62... Kxg5 {[%clk 0:00:02.7]} 63. Ke3 {[%clk 0:00:17.6]} 63... Kg4 {[%clk
0:00:03.3]} 64. g3 {[%clk 0:00:17]} 64... Kxg3 {[%clk 0:00:04.2]} 65. Kxe4
{[%clk 0:00:17.7]} 1/2-1/2